[Event "DLM Youth 2024"]
[Site "Tuebingen"]
[Date "2024.10.04"]
[Round "3"]
[White "Lutz, Ruben"]
[Black "Kocharin, Timur"]
[Result "1/2-1/2"]
[ECO "D43"]
[WhiteElo "2270"]
[BlackElo "2234"]
[Annotator "RC"]
[PlyCount "153"]
[EventDate "2024.10.03"]
[EventType "team-swiss"]
[EventRounds "7"]
[EventCountry "GER"]
[SourceTitle "playchess.com"]
[Source "ChessBase"]
[SourceQuality "1"]
[TimeControl "40/5400+30:1800+30"]

1. d4 {[%emt 0:00:03]} Nf6 {[%emt 0:00:18]} 2. Nf3 {[%emt 0:00:06]} d5 {[%emt 0:00:09]} 3. c4 {[%emt 0:00:07]} c6 {[%emt 0:00:13]} 4. Nc3 {[%emt 0:00:21]} e6 {[%emt 0:00:06]} 5. Bg5 {[%emt 0:01:05]} h6 {[%emt 0:00:22]} 6. Bxf6 {[%emt 0:01:34]} Qxf6 {[%emt 0:00:23]} 7. e3 {[%emt 0:00:13]} Nd7 {[%emt 0:00:11]} 8. Bd3 {[%emt 0:01:53]} dxc4 {[%emt 0:00:31]} 9. Bxc4 {[%emt 0:00:06]} g6 {[%emt 0:00:05]} 10. O-O {[%emt 0:02:00]} Bg7 {[%emt 0:00:13]} 11. Qc2 {[%emt 0:02:56]} O-O {[%emt 0:00:25]} 12. Rac1 {[%emt 0:05:12]} e5 {[%emt 0:06:44]} 13. dxe5 {[%emt 0:02:48]} Nxe5 {[%emt 0:09:05]} 14. Nxe5 {[%emt 0:00:05]} Qxe5 {[%emt 0:00:03]} 15. Qxg6 {[%emt 0:00:11]} Bf5 {[%emt 0:01:29]} 16. Qh5 {[%emt 0:01:41]} b5 {[%emt 0:01:19]} 17. Bb3 {[%emt 0:20:39]} a5 {[%emt 0:02:51]} 18. Bc2 {[%emt 0:17:59]} Be6 {[%emt 0:02:24]} 19. Qxe5 {[%emt 0:04:28]} Bxe5 {[%emt 0:01:27]} 20. Be4 {[%emt 0:00:09]} b4 {[%emt 0:06:55]} 21. Na4 {[%emt 0:00:48]} Bxa2 {[%emt 0:01:48]} 22. Rxc6 {[%emt 0:01:48]} Rac8 {[%emt 0:03:48]} 23. f4 {[%emt 0:11:50]} Rxc6 {[%emt 0:08:29]} 24. Bxc6 {[%emt 0:00:05]} Rc8 {[%emt 0:01:48]} 25. Bb7 {[%emt 0:01:12]} Rc7 {[%emt 0:01:53]} 26. fxe5 {[%emt 0:04:12]} Rxb7 {[%emt 0:00:06]} 27. Ra1 {[%emt 0:02:36]} Be6 {[%emt 0:01:05]} 28. Nc5 {[%emt 0:00:54]} Rb5 {[%emt 0:00:08]} 29. Rc1 {[%emt 0:01:10]} Rb8 {[%emt 0:14:41]} 30. Nxe6 {[%emt 0:08:06]} fxe6 {[%emt 0:00:07]} 31. Rc5 {[%emt 0:03:43]} a4 {[%emt 0:07:23]} 32. Rc4 {[%emt 0:00:16]} Rb5 {[%emt 0:04:46]} 33. Kf2 {[%emt 0:00:57]} a3 {[%emt 0:00:05]} 34. bxa3 {[%emt 0:00:28]} bxa3 {[%emt 0:00:02]} 35. Ra4 {[%emt 0:00:19]} Rxe5 {[%emt 0:01:48]} 36. Rxa3 {[%emt 0:00:06]} Kf7 {[%emt 0:00:05]} 37. Ra4 {[%emt 0:00:27]} Kf6 {[%emt 0:00:24]} 38. Kf3 {[%emt 0:00:13]} Rb5 {[%emt 0:00:21]} 39. Rf4+ {[%emt 0:00:42]} Kg6 {[%emt 0:00:20]} 40. h3 {[%emt 0:03:53]} Ra5 {[%emt 0:02:23]} 41. Rg4+ {[%emt 0:30:17]} Kf6 {[%emt 0:30:20]} 42. Rf4+ {[%emt 0:00:19]} Kg6 {[%emt 0:00:13]} 43. Ke4 {[%emt 0:00:00]} Rb5 {[%emt 0:00:00]} 44. Rf2 {[%emt 0:00:00]} Ra5 {[%emt 0:00:00]} 45. Kd4 {[%emt 0:00:00]} Rd5+ {[%emt 0:00:00]} 46. Ke4 {[%emt 0:00:00]} Ra5 {[%emt 0:00:00]} 47. Rd2 {[%emt 0:00:00]} Kf6 {[%emt 0:00:00]} 48. Rd4 {[%emt 0:00:00]} Rf5 {[%emt 0:00:00]} 49. Kd3 {[%emt 0:00:00]} Ra5 {[%emt 0:00:00]} 50. Ke2 {[%emt 0:00:00]} Rb5 {[%emt 0:00:00]} 51. Kf3 {[%emt 0:00:00]} Ra5 {[%emt 0:00:00]} 52. Rb4 {[%emt 0:00:00]} Rc5 {[%emt 0:00:00]} 53. g3 {[%emt 0:00:00]} Ra5 {[%emt 0:00:00]} 54. Rb8 {[%emt 0:00:00]} Rc5 {[%emt 0:00:00]} 55. Rf8+ {[%emt 0:00:00]} Kg7 {[%emt 0:00:00]} 56. Rf4 {[%emt 0:00:00]} Kg6 {[%emt 0:00:00]} 57. e4 {[%emt 0:00:00]} Rc3+ {[%emt 0:00:00]} 58. Kg2 {[%emt 0:00:08]} Rc2+ {[%emt 0:00:00]} 59. Rf2 {[%emt 0:00:05]} Rc3 {[%emt 0:00:00]} 60. e5 {[%emt 0:00:57]} Kg7 {[%emt 0:00:00]} 61. Rf6 {[%emt 0:00:43]} Rc6 {[%emt 0:00:00]} 62. Kf3 {[%emt 0:04:50]} Ra6 {[%emt 0:00:00]} 63. Kg4 {[%emt 0:00:38]} Ra4+ {[%emt 0:00:00]} 64. Kh5 {[%emt 0:01:01]} Ra3 {[%emt 0:00:00]} 65. Kh4 {[%emt 0:00:37]} Re3 {[%emt 0:00:00]} 66. Rxe6 {[%emt 0:00:16]} h5 {[%emt 0:00:00]} 67. g4 {[%emt 0:01:37]} hxg4 {[%emt 0:00:00]} 68. hxg4 {[%emt 0:00:05]} Kf7 {[%emt 0:00:00]} 69. Rf6+ {[%emt 0:00:06]} Kg7 {[%emt 0:00:00]} 70. Re6 {[%emt 0:02:31]} Kf7 {[%emt 0:00:00]} 71. Rf6+ {[%emt 0:00:02]} Kg7 {[%emt 0:00:00]} 72. Rf5 {[%emt 0:00:46]} Kg6 {[%emt 0:00:00]} 73. Rh5 {[%emt 0:02:41]} Kg7 {[%emt 0:00:00]} 74. Rg5+ {[%emt 0:01:05]} Kh6 {[%emt 0:00:00]} 75. Rh5+ {[%emt 0:01:11]} Kg7 {[%emt 0:00:00]} 76. Rf5 {[%emt 0:00:30]} Kg6 {[%emt 0:00:00]} 77. Rf6+ {[%emt 0:00:22]} 1/2-1/2

[Event "DLM Youth 2024"]
[Site "Tuebingen"]
[Date "2024.10.04"]
[Round "3"]
[White "Bornholdt, Joa Max"]
[Black "Sydykov, Bayastan"]
[Result "1-0"]
[ECO "D02"]
[WhiteElo "2268"]
[BlackElo "2268"]
[Annotator "RC"]
[PlyCount "62"]
[EventDate "2024.10.03"]
[EventType "team-swiss"]
[EventRounds "7"]
[EventCountry "GER"]
[SourceTitle "playchess.com"]
[Source "ChessBase"]
[SourceQuality "1"]
[TimeControl "40/5400+30:1800+30"]

1. d4 {[%emt 0:00:47]} d5 {[%emt 0:00:15]} 2. Nf3 {[%emt 0:00:41]} Nf6 {[%emt 0:00:33]} 3. c3 {[%emt 0:01:39]} e6 {[%emt 0:00:34]} 4. Bg5 {[%emt 0:02:05]} Be7 {[%emt 0:01:44]} 5. Nbd2 {[%emt 0:00:19]} Nbd7 {[%emt 0:12:01]} 6. e3 {[%emt 0:01:46]} h6 {[%emt 0:01:59]} 7. Bh4 {[%emt 0:01:50]} O-O {[%emt 0:01:37]} 8. Bd3 {[%emt 0:01:01]} Ne8 {[%emt 0:10:27]} 9. Bg3 {[%emt 0:15:13]} c5 {[%emt 0:14:30]} 10. Ne5 {[%emt 0:13:34]} Qb6 {[%emt 0:05:35]} 11. Rb1 {[%emt 0:11:19]} Nxe5 {[%emt 0:04:37]} 12. dxe5 {[%emt 0:05:37]} Bd7 {[%emt 0:04:11]} 13. O-O {[%emt 0:07:39]} Bb5 {[%emt 0:02:55]} 14. c4 {[%emt 0:01:45]} dxc4 {[%emt 0:18:42]} 15. Nxc4 {[%emt 0:04:39]} Bxc4 {[%emt 0:02:35]} 16. Bxc4 {[%emt 0:00:06]} Qc6 {[%emt 0:00:36]} 17. Qg4 {[%emt 0:04:09]} Nc7 {[%emt 0:08:13]} 18. Bd3 {[%emt 0:05:43]} Rfd8 {[%emt 0:00:30]} 19. Be4 {[%emt 0:03:53]} Nd5 {[%emt 0:00:19]} 20. Rbe1 {[%emt 0:05:01]} Qb6 {[%emt 0:03:05]} 21. Bf4 {[%emt 0:03:24]} Kf8 {[%emt 0:01:19]} 22. Bh7 {[%emt 0:04:05]} Qc7 {[%emt 0:01:35]} 23. Qg3 {[%emt 0:02:42]} Nxf4 {[%emt 0:03:11]} 24. exf4 {[%emt 0:00:01]} Rd4 {[%emt 0:00:28]} 25. f5 {[%emt 0:02:53]} exf5 26. Bxf5 {[%emt 0:00:02]} Rad8 {[%emt 0:01:20]} 27. f4 {[%emt 0:01:07]} c4 {[%emt 0:00:34]} 28. Kh1 {[%emt 0:00:17]} Re8 {[%emt 0:00:33]} 29. e6 {[%emt 0:00:52]} fxe6 {[%emt 0:00:27]} 30. Bxe6 {[%emt 0:00:22]} Bf6 {[%emt 0:00:31]} 31. Qg6 {[%emt 0:00:25]} Rd6 {[%emt 0:00:35]} 1-0

[Event "DLM Youth 2024"]
[Site "Tuebingen"]
[Date "2024.10.04"]
[Round "3"]
[White "Hinrichs, Paul"]
[Black "Chassard, Cedric"]
[Result "1/2-1/2"]
[ECO "E04"]
[WhiteElo "2264"]
[BlackElo "2289"]
[Annotator "RC"]
[PlyCount "84"]
[EventDate "2024.10.03"]
[EventType "team-swiss"]
[EventRounds "7"]
[EventCountry "GER"]
[SourceTitle "playchess.com"]
[Source "ChessBase"]
[SourceQuality "1"]
[TimeControl "40/5400+30:1800+30"]

1. d4 {[%emt 0:00:07]} Nf6 {[%emt 0:00:07]} 2. c4 {[%emt 0:00:09]} e6 {[%emt 0:00:07]} 3. Nf3 {[%emt 0:00:05]} d5 {[%emt 0:00:05]} 4. g3 {[%emt 0:00:45]} dxc4 {[%emt 0:02:00]} 5. Bg2 {[%emt 0:00:38]} Bd7 {[%emt 0:00:26]} 6. Ne5 {[%emt 0:01:01]} Bc6 {[%emt 0:00:11]} 7. Nxc6 {[%emt 0:00:05]} Nxc6 {[%emt 0:00:04]} 8. O-O {[%emt 0:02:30]} Qd7 {[%emt 0:00:16]} 9. e3 {[%emt 0:01:37]} O-O-O {[%emt 0:00:08]} 10. Nd2 {[%emt 0:00:06]} e5 {[%emt 0:00:30]} 11. Nxc4 {[%emt 0:00:05]} exd4 {[%emt 0:00:07]} 12. Qa4 {[%emt 0:00:04]} Nd5 {[%emt 0:07:08]} 13. exd4 {[%emt 0:06:08]} Kb8 {[%emt 0:04:58]} 14. Rd1 {[%emt 0:04:51]} f6 {[%emt 0:01:02]} 15. a3 {[%emt 0:08:02]} h5 {[%emt 0:07:44]} 16. Na5 {[%emt 0:10:16]} Nxa5 {[%emt 0:02:28]} 17. Qxa5 {[%emt 0:00:08]} h4 {[%emt 0:12:29]} 18. Rd3 {[%emt 0:06:01]} c6 {[%emt 0:07:11]} 19. Bd2 {[%emt 0:02:30]} Bd6 {[%emt 0:03:39]} 20. Rc1 {[%emt 0:01:03]} Bc7 {[%emt 0:04:32]} 21. Qa4 {[%emt 0:00:06]} Bb6 {[%emt 0:00:37]} 22. Ba5 {[%emt 0:01:00]} Bxa5 {[%emt 0:11:55]} 23. Qxa5 {[%emt 0:00:10]} Rh5 {[%emt 0:04:07]} 24. Qa4 {[%emt 0:09:24]} hxg3 {[%emt 0:00:12]} 25. hxg3 {[%emt 0:00:01]} Qf5 {[%emt 0:01:59]} 26. Qd1 {[%emt 0:00:35]} Qg5 {[%emt 0:02:39]} 27. Rc2 {[%emt 0:03:30]} Rdh8 {[%emt 0:00:48]} 28. Qf3 {[%emt 0:00:46]} Re8 {[%emt 0:03:29]} 29. Rd1 {[%emt 0:01:21]} Qf5 {[%emt 0:05:10]} 30. Qxf5 {[%emt 0:00:25]} Rxf5 {[%emt 0:00:01]} 31. b4 {[%emt 0:00:35]} a6 {[%emt 0:07:35]} 32. Rb1 {[%emt 0:08:34]} Nc7 {[%emt 0:00:00]} 33. Rc5 Nd5 {[%emt 0:11:38]} 34. a4 {[%emt 0:01:34]} Re2 {[%emt 0:00:14]} 35. Bf1 {[%emt 0:02:53]} Rd2 {[%emt 0:00:00]} 36. b5 {[%emt 0:15:41]} axb5 {[%emt 0:00:00]} 37. axb5 {[%emt 0:00:10]} Kc7 {[%emt 0:01:12]} 38. Bg2 {[%emt 0:05:59]} Ne7 {[%emt 0:00:00]} 39. bxc6 {[%emt 0:05:18]} bxc6 {[%emt 0:00:00]} 40. Rbc1 {[%emt 0:03:06]} Rxc5 {[%emt 0:02:48]} 41. dxc5 {[%emt 0:30:09]} Ra2 {[%emt 0:05:17]} 42. Re1 {[%emt 0:00:00]} Kd7 {[%emt 0:02:17]} 1/2-1/2

[Event "DLM Youth 2024"]
[Site "Tuebingen"]
[Date "2024.10.04"]
[Round "3"]
[White "Weihrauch, Jakob"]
[Black "Foksha, Mischa"]
[Result "1-0"]
[ECO "B90"]
[WhiteElo "2264"]
[BlackElo "2078"]
[Annotator "RC"]
[PlyCount "63"]
[EventDate "2024.10.03"]
[EventType "team-swiss"]
[EventRounds "7"]
[EventCountry "GER"]
[SourceTitle "playchess.com"]
[Source "ChessBase"]
[SourceQuality "1"]
[TimeControl "40/5400+30:1800+30"]

1. e4 {[%emt 0:00:03]} c5 {[%emt 0:00:05]} 2. Nf3 {[%emt 0:00:03]} d6 {[%emt 0:00:04]} 3. d4 {[%emt 0:00:03]} cxd4 {[%emt 0:00:03]} 4. Nxd4 {[%emt 0:00:04]} Nf6 {[%emt 0:00:05]} 5. Nc3 {[%emt 0:00:05]} a6 {[%emt 0:00:04]} 6. h3 {[%emt 0:00:06]} e5 {[%emt 0:00:39]} 7. Nf3 {[%emt 0:00:22]} h6 {[%emt 0:00:50]} 8. g4 {[%emt 0:01:32]} b5 {[%emt 0:00:47]} 9. g5 {[%emt 0:02:05]} hxg5 {[%emt 0:00:06]} 10. Nxg5 {[%emt 0:00:30]} Bb7 {[%emt 0:01:25]} 11. Be3 {[%emt 0:11:04]} Nbd7 {[%emt 0:08:48]} 12. Qd2 {[%emt 0:06:11]} b4 {[%emt 0:15:30]} 13. Nd5 {[%emt 0:00:18]} Nxd5 {[%emt 0:03:16]} 14. exd5 {[%emt 0:00:01]} Qa5 {[%emt 0:02:21]} 15. Bc4 {[%emt 0:01:43]} Rc8 {[%emt 0:03:04]} 16. Bb3 {[%emt 0:02:43]} Be7 {[%emt 0:13:20]} 17. Rg1 {[%emt 0:08:44]} Bxg5 {[%emt 0:11:53]} 18. Rxg5 {[%emt 0:00:06]} g6 {[%emt 0:04:51]} 19. Rg4 {[%emt 0:10:34]} Rxh3 {[%emt 0:04:08]} 20. O-O-O {[%emt 0:01:00]} Nc5 {[%emt 0:02:59]} 21. Bxc5 {[%emt 0:08:19]} Rxc5 {[%emt 0:00:11]} 22. Rxb4 {[%emt 0:01:57]} Bc8 {[%emt 0:02:47]} 23. f4 {[%emt 0:17:51]} exf4 {[%emt 0:11:02]} 24. Qxf4 {[%emt 0:02:22]} Qc7 {[%emt 0:00:11]} 25. Re4+ {[%emt 0:01:27]} Kf8 {[%emt 0:00:17]} 26. Rde1 {[%emt 0:00:53]} Rh5 {[%emt 0:03:15]} 27. Re8+ {[%emt 0:00:32]} Kg7 {[%emt 0:00:05]} 28. Qd4+ {[%emt 0:03:08]} Re5 {[%emt 0:00:07]} 29. R1xe5 {[%emt 0:00:01]} dxe5 {[%emt 0:00:07]} 30. Qh4 {[%emt 0:00:03]} g5 {[%emt 0:01:36]} 31. Qxg5+ {[%emt 0:00:16]} Kh7 {[%emt 0:00:07]} 32. Rg8 {[%emt 0:00:21]} 1-0

[Event "DLM Youth 2024"]
[Site "Tuebingen"]
[Date "2024.10.04"]
[Round "3"]
[White "Semling, Julius"]
[Black "Haubold, Sebastian"]
[Result "1/2-1/2"]
[ECO "E73"]
[WhiteElo "2233"]
[BlackElo "2030"]
[Annotator "RC"]
[PlyCount "77"]
[EventDate "2024.10.03"]
[EventType "team-swiss"]
[EventRounds "7"]
[EventCountry "GER"]
[SourceTitle "playchess.com"]
[Source "ChessBase"]
[SourceQuality "1"]
[TimeControl "40/5400+30:1800+30"]

1. d4 {[%emt 0:00:03]} Nf6 {[%emt 0:00:17]} 2. c4 {[%emt 0:00:08]} g6 {[%emt 0:00:15]} 3. Nc3 {[%emt 0:00:09]} Bg7 {[%emt 0:00:10]} 4. e4 {[%emt 0:00:08]} d6 {[%emt 0:00:05]} 5. Be2 {[%emt 0:00:24]} O-O {[%emt 0:01:54]} 6. Be3 {[%emt 0:00:32]} e5 {[%emt 0:01:53]} 7. d5 {[%emt 0:00:56]} Na6 {[%emt 0:05:25]} 8. h4 {[%emt 0:00:45]} Nc5 {[%emt 0:04:37]} 9. Qc2 {[%emt 0:00:17]} c6 {[%emt 0:06:10]} 10. h5 {[%emt 0:01:21]} cxd5 {[%emt 0:06:31]} 11. cxd5 {[%emt 0:00:07]} Bd7 {[%emt 0:06:38]} 12. hxg6 {[%emt 0:00:38]} fxg6 {[%emt 0:00:53]} 13. Bxc5 {[%emt 0:00:24]} dxc5 {[%emt 0:00:09]} 14. d6 {[%emt 0:00:07]} b5 {[%emt 0:22:32]} 15. Nf3 {[%emt 0:25:24]} Qe8 {[%emt 0:05:49]} 16. Rd1 {[%emt 0:12:33]} c4 {[%emt 0:02:52]} 17. a4 {[%emt 0:03:07]} a6 {[%emt 0:00:31]} 18. axb5 {[%emt 0:02:09]} axb5 {[%emt 0:00:02]} 19. b3 {[%emt 0:01:30]} Rc8 {[%emt 0:07:57]} 20. bxc4 {[%emt 0:03:03]} bxc4 {[%emt 0:03:27]} 21. Qa2 {[%emt 0:04:02]} Be6 {[%emt 0:02:40]} 22. Ng5 {[%emt 0:07:49]} h6 {[%emt 0:02:07]} 23. Nxe6 {[%emt 0:00:40]} Qxe6 {[%emt 0:00:02]} 24. Qa6 {[%emt 0:02:46]} Kh8 {[%emt 0:01:12]} 25. Rh3 {[%emt 0:01:16]} Rfd8 {[%emt 0:03:33]} 26. Rf3 {[%emt 0:12:12]} Ne8 {[%emt 0:01:37]} 27. Nb5 {[%emt 0:02:35]} Qd7 {[%emt 0:01:34]} 28. Qa4 {[%emt 0:03:41]} Qc6 {[%emt 0:01:57]} 29. Rc3 {[%emt 0:04:17]} Rxd6 {[%emt 0:03:34]} 30. Nxd6 {[%emt 0:05:23]} Qxa4 {[%emt 0:00:05]} 31. Nxc8 {[%emt 0:00:05]} Qb4 {[%emt 0:00:12]} 32. Rdc1 {[%emt 0:00:06]} Nf6 {[%emt 0:00:28]} 33. Bf3 {[%emt 0:01:14]} h5 {[%emt 0:03:42]} 34. Ke2 {[%emt 0:01:08]} Bh6 {[%emt 0:00:13]} 35. Rxc4 {[%emt 0:00:45]} Qd2+ {[%emt 0:00:28]} 36. Kf1 {[%emt 0:00:16]} Qxc1+ {[%emt 0:02:05]} 37. Rxc1 {[%emt 0:00:07]} Bxc1 {[%emt 0:00:04]} 38. Nd6 {[%emt 0:00:11]} Bb2 {[%emt 0:00:48]} 39. Nc4 {[%emt 0:00:29]} 1/2-1/2

[Event "DLM Youth 2024"]
[Site "Tuebingen"]
[Date "2024.10.04"]
[Round "3"]
[White "Semling, Johannes"]
[Black "Heinrich, John"]
[Result "1/2-1/2"]
[ECO "B56"]
[WhiteElo "2206"]
[BlackElo "2237"]
[Annotator "RC"]
[PlyCount "82"]
[EventDate "2024.10.03"]
[EventType "team-swiss"]
[EventRounds "7"]
[EventCountry "GER"]
[SourceTitle "playchess.com"]
[Source "ChessBase"]
[SourceQuality "1"]
[TimeControl "40/5400+30:1800+30"]

1. e4 {[%emt 0:00:14]} c5 {[%emt 0:00:18]} 2. Nf3 {[%emt 0:00:09]} d6 {[%emt 0:00:05]} 3. d4 {[%emt 0:00:11]} cxd4 {[%emt 0:00:04]} 4. Nxd4 {[%emt 0:00:07]} Nf6 {[%emt 0:00:03]} 5. Nc3 {[%emt 0:00:10]} a6 {[%emt 0:00:03]} 6. Nb3 {[%emt 0:00:44]} Nc6 {[%emt 0:07:47]} 7. Be3 {[%emt 0:00:39]} Ng4 {[%emt 0:01:12]} 8. Bg5 {[%emt 0:00:12]} h6 {[%emt 0:00:42]} 9. Bd2 {[%emt 0:00:36]} Bd7 {[%emt 0:08:00]} 10. Bd3 {[%emt 0:04:54]} g6 {[%emt 0:01:17]} 11. O-O {[%emt 0:01:25]} Bg7 {[%emt 0:00:11]} 12. Kh1 {[%emt 0:08:03]} O-O {[%emt 0:01:00]} 13. f4 {[%emt 0:01:16]} b5 {[%emt 0:01:57]} 14. h3 {[%emt 0:03:56]} Nf6 {[%emt 0:00:11]} 15. a4 {[%emt 0:03:50]} b4 {[%emt 0:08:55]} 16. Ne2 {[%emt 0:02:53]} Qb6 {[%emt 0:05:30]} 17. Rf3 {[%emt 0:07:51]} Qb7 {[%emt 0:02:00]} 18. Qe1 {[%emt 0:07:12]} e5 {[%emt 0:12:36]} 19. Qf2 {[%emt 0:07:57]} exf4 {[%emt 0:07:27]} 20. Bxf4 {[%emt 0:01:58]} d5 {[%emt 0:10:03]} 21. exd5 {[%emt 0:06:11]} Nxd5 {[%emt 0:00:48]} 22. Bd6 {[%emt 0:03:55]} Ne5 {[%emt 0:05:59]} 23. Bxf8 {[%emt 0:04:12]} Rxf8 {[%emt 0:06:39]} 24. Nc5 {[%emt 0:05:41]} Qc7 {[%emt 0:02:29]} 25. Nxd7 {[%emt 0:03:05]} Nxf3 {[%emt 0:00:35]} 26. Qxf3 {[%emt 0:00:02]} Qxd7 {[%emt 0:00:09]} 27. Bxa6 {[%emt 0:02:12]} Bxb2 {[%emt 0:02:15]} 28. Bb5 {[%emt 0:09:12]} Qf5 {[%emt 0:01:44]} 29. Qxf5 gxf5 {[%emt 0:00:01]} 30. Rb1 {[%emt 0:03:58]} Be5 {[%emt 0:00:56]} 31. Bc4 {[%emt 0:01:03]} Ne3 {[%emt 0:00:18]} 32. Bd3 {[%emt 0:00:49]} Rc8 {[%emt 0:02:24]} 33. Rxb4 {[%emt 0:00:54]} Nxc2 {[%emt 0:00:29]} 34. Bxf5 {[%emt 0:02:04]} Rc7 {[%emt 0:04:12]} 35. Rb8+ {[%emt 0:01:37]} Kg7 {[%emt 0:00:05]} 36. Rc8 {[%emt 0:00:15]} Rxc8 {[%emt 0:04:54]} 37. Bxc8 {[%emt 0:00:09]} Nd4 {[%emt 0:00:21]} 38. Nc1 {[%emt 0:00:31]} Bc7 {[%emt 0:01:17]} 39. Kg1 {[%emt 0:00:21]} f5 {[%emt 0:00:51]} 40. Kf2 {[%emt 0:00:40]} f4 {[%emt 0:00:17]} 41. Nd3 {[%emt 0:30:16]} Kf6 {[%emt 0:32:16]} 1/2-1/2

[Event "DLM Youth 2024"]
[Site "Tuebingen"]
[Date "2024.10.04"]
[Round "3"]
[White "Baranyai-Molnar, Adam"]
[Black "Braeutigam, Alexander"]
[Result "1-0"]
[ECO "B96"]
[WhiteElo "2179"]
[BlackElo "2104"]
[Annotator "RC"]
[PlyCount "101"]
[EventDate "2024.10.03"]
[EventType "team-swiss"]
[EventRounds "7"]
[EventCountry "GER"]
[SourceTitle "playchess.com"]
[Source "ChessBase"]
[SourceQuality "1"]
[TimeControl "40/5400+30:1800+30"]

1. e4 {[%emt 0:00:02]} c5 {[%emt 0:00:06]} 2. Nf3 {[%emt 0:00:03]} d6 {[%emt 0:00:04]} 3. d4 {[%emt 0:00:03]} cxd4 {[%emt 0:00:04]} 4. Nxd4 {[%emt 0:00:03]} Nf6 {[%emt 0:00:06]} 5. Nc3 {[%emt 0:00:03]} a6 {[%emt 0:00:04]} 6. Bg5 {[%emt 0:00:07]} Nbd7 {[%emt 0:02:01]} 7. Qe2 {[%emt 0:02:41]} Qc7 {[%emt 0:00:40]} 8. f4 {[%emt 0:01:07]} e6 {[%emt 0:10:16]} 9. O-O-O {[%emt 0:00:21]} b5 {[%emt 0:01:16]} 10. Nd5 {[%emt 0:23:26]} Nxd5 {[%emt 0:06:49]} 11. exd5 {[%emt 0:00:12]} e5 {[%emt 0:03:10]} 12. g4 {[%emt 0:06:56]} Bb7 {[%emt 0:11:02]} 13. Bg2 {[%emt 0:00:26]} h6 {[%emt 0:08:52]} 14. Bh4 {[%emt 0:01:54]} Qc4 {[%emt 0:07:47]} 15. Qxc4 {[%emt 0:00:26]} bxc4 {[%emt 0:00:01]} 16. Rhe1 {[%emt 0:00:28]} g5 {[%emt 0:00:06]} 17. fxg5 {[%emt 0:00:46]} hxg5 {[%emt 0:00:01]} 18. Bg3 {[%emt 0:02:22]} O-O-O {[%emt 0:05:53]} 19. Nf5 {[%emt 0:01:56]} Nf6 {[%emt 0:01:28]} 20. h3 {[%emt 0:01:15]} Kd7 {[%emt 0:03:21]} 21. Rf1 {[%emt 0:03:11]} Be7 {[%emt 0:01:26]} 22. Ne3 {[%emt 0:03:59]} Rc8 {[%emt 0:01:10]} 23. Be1 {[%emt 0:03:23]} Rc5 {[%emt 0:02:55]} 24. Bb4 {[%emt 0:01:21]} Rb5 {[%emt 0:02:05]} 25. Bc3 {[%emt 0:00:14]} Rc5 {[%emt 0:02:18]} 26. Rf5 {[%emt 0:02:59]} a5 {[%emt 0:00:03]} 27. Be1 {[%emt 0:02:18]} Bd8 {[%emt 0:06:04]} 28. c3 {[%emt 0:01:19]} a4 {[%emt 0:00:41]} 29. Bf2 {[%emt 0:01:02]} a3 {[%emt 0:01:37]} 30. Nc2 {[%emt 0:01:31]} axb2+ {[%emt 0:00:31]} 31. Kxb2 {[%emt 0:00:06]} Rb5+ {[%emt 0:00:15]} 32. Nb4 {[%emt 0:00:18]} Be7 {[%emt 0:01:54]} 33. Be3 {[%emt 0:01:09]} Rg8 {[%emt 0:09:54]} 34. a4 {[%emt 0:16:03]} Ra5 {[%emt 0:00:19]} 35. Ka3 {[%emt 0:00:05]} Rga8 {[%emt 0:05:06]} 36. Bxg5 {[%emt 0:01:12]} Rxa4+ {[%emt 0:00:02]} 37. Kb2 {[%emt 0:00:08]} Nh7 {[%emt 0:00:31]} 38. Bxe7 {[%emt 0:00:21]} Kxe7 {[%emt 0:00:01]} 39. Rdf1 {[%emt 0:00:49]} Rf8 {[%emt 0:03:22]} 40. Be4 {[%emt 0:01:57]} f6 {[%emt 0:01:38]} 41. h4 {[%emt 0:30:19]} Rg8 {[%emt 0:31:32]} 42. g5 {[%emt 0:01:38]} Bc8 {[%emt 0:01:32]} 43. gxf6+ {[%emt 0:00:24]} Kf7 {[%emt 0:00:25]} 44. Rh5 {[%emt 0:01:57]} Nf8 {[%emt 0:01:07]} 45. Rg5 {[%emt 0:00:38]} Bh3 {[%emt 0:02:31]} 46. Rf2 {[%emt 0:01:13]} Ra8 {[%emt 0:00:00]} 47. Nc6 {[%emt 0:00:00]} Nd7 {[%emt 0:00:00]} 48. Bh7 {[%emt 0:00:00]} Nc5 {[%emt 0:00:00]} 49. Rf3 {[%emt 0:00:00]} Bg2 {[%emt 0:00:00]} 50. Rxg8 {[%emt 0:00:00]} Nd3+ {[%emt 0:00:00]} 51. Rxd3 {[%emt 0:00:00]} 1-0

[Event "DLM Youth 2024"]
[Site "Tuebingen"]
[Date "2024.10.04"]
[Round "3"]
[White "Mohylnyi, Stepan"]
[Black "Klaska, Philipp Leon"]
[Result "0-1"]
[ECO "B34"]
[WhiteElo "2160"]
[BlackElo "2263"]
[Annotator "RC"]
[PlyCount "70"]
[EventDate "2024.10.03"]
[EventType "team-swiss"]
[EventRounds "7"]
[EventCountry "GER"]
[SourceTitle "playchess.com"]
[Source "ChessBase"]
[SourceQuality "1"]
[TimeControl "40/5400+30:1800+30"]

1. e4 {[%emt 0:00:01]} c5 {[%emt 0:00:20]} 2. Nf3 {[%emt 0:00:06]} g6 {[%emt 0:00:06]} 3. d4 {[%emt 0:00:11]} cxd4 {[%emt 0:00:07]} 4. Nxd4 {[%emt 0:00:09]} Bg7 {[%emt 0:00:05]} 5. Nc3 {[%emt 0:00:08]} Nc6 {[%emt 0:00:08]} 6. Nde2 {[%emt 0:00:08]} Nf6 {[%emt 0:00:22]} 7. g3 {[%emt 0:00:05]} b5 {[%emt 0:01:56]} 8. Bg2 {[%emt 0:02:52]} b4 {[%emt 0:00:35]} 9. Nd5 {[%emt 0:00:15]} a5 {[%emt 0:01:07]} 10. O-O {[%emt 0:15:24]} O-O {[%emt 0:07:10]} 11. Be3 {[%emt 0:01:04]} Rb8 {[%emt 0:08:46]} 12. h3 {[%emt 0:00:49]} Ba6 {[%emt 0:04:58]} 13. Re1 {[%emt 0:05:17]} e6 {[%emt 0:20:56]} 14. Ndf4 {[%emt 0:04:12]} d6 {[%emt 0:04:52]} 15. Nd3 {[%emt 0:09:43]} Nd7 {[%emt 0:08:02]} 16. f4 {[%emt 0:00:46]} Nb6 {[%emt 0:04:06]} 17. e5 {[%emt 0:03:42]} Nd5 {[%emt 0:03:25]} 18. Bxd5 {[%emt 0:14:53]} exd5 {[%emt 0:00:01]} 19. Nd4 {[%emt 0:01:06]} Rc8 {[%emt 0:06:42]} 20. Nxc6 {[%emt 0:09:02]} Rxc6 {[%emt 0:00:16]} 21. Bd4 {[%emt 0:01:26]} Qc8 {[%emt 0:01:36]} 22. Rc1 {[%emt 0:06:46]} Bxd3 {[%emt 0:06:32]} 23. Qxd3 {[%emt 0:05:22]} Qxh3 {[%emt 0:00:29]} 24. Bf2 {[%emt 0:03:32]} dxe5 {[%emt 0:03:42]} 25. Qxd5 {[%emt 0:00:45]} Re6 {[%emt 0:01:15]} 26. fxe5 {[%emt 0:03:50]} Rfe8 {[%emt 0:01:28]} 27. c4 {[%emt 0:04:46]} Bxe5 {[%emt 0:01:44]} 28. Qd7 {[%emt 0:06:09]} Bxg3 {[%emt 0:06:36]} 29. Qxe8+ {[%emt 0:00:01]} Rxe8 {[%emt 0:00:07]} 30. Rxe8+ {[%emt 0:00:01]} Kg7 {[%emt 0:00:01]} 31. Bd4+ {[%emt 0:00:54]} f6 {[%emt 0:01:18]} 32. Re2 {[%emt 0:02:31]} Qg4 {[%emt 0:00:56]} 33. Rg2 {[%emt 0:00:01]} Qxd4+ {[%emt 0:00:07]} 34. Kh1 {[%emt 0:00:00]} Qh4+ {[%emt 0:00:42]} 35. Kg1 {[%emt 0:00:05]} Bh2+ {[%emt 0:00:15]} 0-1